bitfinex-derivatives/quotes_BNBF0:USTF0_20250128
["timestamp","ask_amount","ask_price","bid_price","bid_amount"]
[1738074317999,1.16181248,671.67,670.23,0.29840502]
[1738074318297,1.16181248,671.66,670.23,0.29840502]
[1738074318499,1.16181248,671.65,670.23,0.29840502]
[1738074318797,1.16181248,671.64,670.23,0.29840502]
[1738074318997,1.16181248,671.63,670.23,0.29840502]
[1738074319197,1.16181248,671.62,670.23,0.29840502]
[1738074319399,1.16181248,671.61,670.23,0.29840502]
[1738074319592,2.03843104,671.6,670.23,0.29840502]
[1738074319797,1.16181248,671.59,670.23,0.29840502]
[1738074319998,1.16181248,671.58,670.23,0.29840502]
[1738074320299,2.03843104,671.57,670.23,0.29840502]
[1738074320501,1.16181248,671.56,670.23,0.29840502]
[1738074320693,1.16181248,671.55,670.23,0.29840502]
[1738074320895,2.03843104,671.54,670.23,0.29840502]
[1738074321099,1.16181248,671.53,670.23,0.29840502]
[1738074321400,2.03843104,671.52,670.23,0.29840502]
[1738074321594,2.03843104,671.51,670.23,0.29840502]
[1738074321799,1.16181248,671.5,670.23,0.29840502]
[1738074322100,1.16181248,671.49,670.23,0.29840502]
[1738074322301,1.16181248,671.48,670.23,0.29840502]
[1738074322601,1.16181248,671.47,670.23,0.29840502]
[1738074322801,1.16181248,671.46,670.23,0.29840502]
[1738074323001,1.16181248,671.45,670.23,0.29840502]
[1738074323202,1.16181248,671.44,670.23,0.29840502]
[1738074323396,1.16181248,671.43,670.23,0.29840502]
[1738074323599,1.16181248,671.42,670.23,0.29840502]
[1738074323798,1.16181248,671.41,670.23,0.29840502]
[1738074323997,1.16181248,671.4,670.23,0.29840502]
[1738074324194,1.16181248,671.39,670.23,0.29840502]
[1738074324396,1.16181248,671.38,670.23,0.29840502]
[1738074324599,1.16181248,671.37,670.23,0.29840502]
[1738074324802,1.16181248,671.36,670.23,0.29840502]
[1738074325003,0.87661856,671.37,670.23,0.29840502]
[1738074325198,0.87661856,671.35,670.23,0.29840502]
[1738074325800,1.55566069,671.93,670.23,0.29840502]
[1738074326002,1.43395109,671.92,670.23,0.29840502]
[1738074326203,1.43395109,671.91,670.23,0.29840502]
[1738074326400,1.43395109,671.9,670.23,0.29840502]
[1738074326702,1.43395109,671.89,670.23,0.29840502]
[1738074326904,1.43395109,671.88,670.23,0.29840502]
[1738074327101,1.43395109,671.87,670.23,0.29840502]
[1738074327306,0.87524674,671.89,670.23,0.29840502]
[1738074327307,1.43395109,671.86,670.23,0.29840502]
[1738074327507,1.43395109,671.85,670.23,0.29840502]
[1738074327700,1.43395109,671.84,670.23,0.29840502]
[1738074327903,1.43395109,671.83,670.23,0.29840502]
[1738074328101,1.43395109,671.82,670.23,0.29840502]
[1738074328304,2.3069593,671.81,670.23,0.29840502]
[1738074328506,1.43171256,671.8,670.23,0.29840502]
[1738074328704,1.43171256,671.79,670.23,0.29840502]
[1738074328903,1.43171256,671.78,670.23,0.29840502]
[1738074329103,1.15793634,671.77,670.23,0.29840502]
[1738074329308,1.43170708,671.76,670.23,0.29840502]
[1738074329508,1.43170708,671.75,670.23,0.29840502]
[1738074329809,2.30695382,671.74,670.23,0.29840502]
[1738074330008,1.43170708,671.73,670.23,0.29840502]
[1738074330209,0.87524674,671.74,670.23,0.29840502]
[1738074330210,1.43170708,671.72,670.43,1.10766605]
[1738074330509,1.43170708,671.71,670.43,1.10766605]
[1738074330709,1.43170708,671.7,670.43,1.10766605]
[1738074330911,1.15793634,671.69,670.44,0.29831155]
[1738074331111,1.15793634,671.68,670.44,0.29831155]
[1738074331309,1.15793634,671.67,670.44,0.29831155]
[1738074331509,1.15793634,671.66,670.44,0.29831155]
[1738074331708,1.15793634,671.65,670.44,0.29831155]
[1738074331909,1.15793634,671.64,670.44,0.29831155]
[1738074332211,2.03318308,671.63,670.44,0.29831155]
[1738074332412,1.15793634,671.62,670.44,0.29831155]
[1738074332611,2.03318308,671.61,670.44,0.29831155]
[1738074332905,1.15793634,671.6,670.44,0.29831155]
[1738074333104,1.15793634,671.59,670.44,0.29831155]
[1738074333310,2.03318308,671.58,670.44,0.29831155]
[1738074333508,1.15793634,671.57,670.44,0.29831155]
[1738074333708,2.03318308,671.57,670.44,0.29831155]
[1738074333908,1.15793634,671.56,670.44,0.29831155]
[1738074334711,0.87524674,671.55,670.44,0.29831155]
[1738074334912,1.15793634,671.54,670.44,0.29831155]
[1738074335412,0.87524674,671.53,670.44,0.29831155]
[1738074335611,2.03318308,671.52,670.44,0.29831155]
[1738074335812,1.15793634,671.51,670.44,0.29831155]
[1738074336216,0.87524674,671.5,670.44,0.29831155]
[1738074336513,1.15793634,671.49,670.44,0.29831155]
[1738074336912,0.87524674,671.48,670.44,0.29831155]
[1738074337113,1.15793634,671.47,670.44,0.29831155]
[1738074337514,0.87524674,671.46,670.44,0.29831155]
[1738074337713,1.15793634,671.45,670.44,0.29831155]
[1738074337916,2.03318308,671.45,670.44,0.29831155]
[1738074338215,2.03318308,671.44,670.44,0.29831155]
[1738074338509,1.15793634,671.43,670.44,0.29831155]
[1738074338709,1.15793634,671.43,670.45,1.10766605]
[1738074339113,0.87524674,671.42,670.46,0.29830265]
[1738074339313,0.87524674,671.41,670.46,0.29830265]
[1738074340019,1.55561433,671.83,670.46,0.29830265]
[1738074340213,1.43291081,671.82,670.46,0.29830265]
[1738074340409,1.43291081,671.81,670.46,0.29830265]
[1738074340616,1.43291081,671.8,670.46,0.29830265]
[1738074340817,1.43291081,671.79,670.46,0.29830265]
[1738074341020,2.30759245,671.78,670.46,0.29830265]
[1738074341218,1.43291081,671.77,670.46,0.29830265]
[1738074341422,1.43291081,671.76,670.54,1.10766605]
[1738074341623,1.43291081,671.75,670.54,1.10766605]
[1738074341822,1.43291081,671.74,670.54,1.10766605]
[1738074342120,1.43291081,671.73,670.54,1.10766605]
[1738074342321,1.43291081,671.72,670.54,1.10766605]
[1738074342522,1.43291081,671.71,670.54,1.10766605]
[1738074342715,2.30759245,671.7,670.54,1.10766605]
[1738074343027,1.43291081,671.69,670.54,1.10766605]
[1738074343323,1.43291081,671.68,670.54,1.10766605]
[1738074343619,2.30759411,671.67,670.54,1.10766605]
[1738074343823,1.43291247,671.66,670.54,1.10766605]
[1738074344117,1.09293429,671.95,670.54,1.10766605]
[1738074344118,2.30759411,671.65,670.55,0.29826262]
[1738074344323,1.15913669,671.64,670.55,0.29826262]
[1738074344514,0.87468164,671.65,670.55,0.29826262]
[1738074344515,1.15913669,671.63,670.72,1.10766605]
[1738074344716,1.15913669,671.62,670.72,1.10766605]
[1738074345125,1.09293429,671.78,670.74,0.29817813]
[1738074347825,1.55465298,672.42,670.82,1.10766605]
[1738074348124,1.73109653,672.41,670.83,0.29813812]
[1738074348325,1.43365896,672.4,670.83,0.29813812]
[1738074348525,1.73093645,672.39,670.83,0.29813812]
[1738074348826,1.15988171,672.38,670.83,0.29813812]
[1738074349026,1.15988171,672.37,670.83,0.29813812]
[1738074349221,1.43347216,672.36,670.83,0.29813812]
[1738074349525,1.15988171,672.35,670.83,0.29813812]
[1738074349726,1.15988171,672.34,670.83,0.29813812]
[1738074350024,1.15988171,672.33,670.83,0.29813812]
[1738074350227,1.15988171,672.32,670.83,0.29813812]
[1738074350425,1.15953818,672.31,670.83,0.29813812]
[1738074350626,1.15953818,672.3,670.83,0.29813812]
[1738074350827,1.15953818,672.29,670.83,0.29813812]
[1738074351021,1.15953818,672.28,670.83,0.29813812]
[1738074351227,1.15953818,672.27,670.83,0.29813812]
[1738074351528,1.15953818,672.26,670.83,0.29813812]
[1738074351729,1.15953818,672.25,670.83,0.29813812]
[1738074351928,1.15953818,672.24,670.83,0.29813812]
[1738074352122,1.15953818,672.23,670.83,0.29813812]
[1738074352427,1.15953818,672.22,670.83,0.29813812]
[1738074352623,1.15953818,672.21,670.83,0.29813812]
[1738074352829,1.15953818,672.2,670.83,0.29813812]
[1738074353033,1.15953818,672.19,670.83,0.29813812]
[1738074353328,1.15953818,672.18,670.83,0.29813812]
[1738074353526,1.15953818,672.17,670.83,0.29813812]
[1738074353726,1.15953818,672.16,670.83,0.29813812]
[1738074354028,1.15953818,672.15,670.83,0.29813812]
[1738074354223,1.15953818,672.14,670.83,0.29813812]
[1738074354422,1.15953818,672.13,670.83,0.29813812]
[1738074354625,1.15953818,672.12,670.83,0.29813812]
[1738074354828,0.29744642,672.39,670.83,0.29813812]
[1738074355125,1.15841003,672.38,670.83,0.29813812]
[1738074355426,1.15841003,672.37,670.83,0.29813812]
[1738074355621,1.15841003,672.36,670.83,0.29813812]
[1738074355829,1.15841003,672.35,670.83,0.29813812]
[1738074356029,1.15841003,672.34,670.83,0.29813812]
[1738074356228,1.15841003,672.33,670.83,0.29813812]
[1738074356432,1.15841003,672.32,670.83,0.29813812]
[1738074356730,1.15841003,672.31,670.83,0.29813812]
[1738074357029,1.15841003,672.3,670.83,0.29813812]
[1738074357231,1.5539125,672.69,670.83,0.29813812]
[1738074357431,1.43047524,672.68,670.83,0.29813812]
[1738074357631,1.43047524,672.67,670.83,0.29813812]
[1738074357829,1.15704245,672.66,670.83,0.29813812]
[1738074358030,1.43046757,672.65,670.83,0.29813812]
[1738074358330,1.43046757,672.64,670.83,0.29813812]
[1738074358630,1.43046757,672.63,670.83,0.29813812]
[1738074358927,1.43046757,672.62,670.83,0.29813812]
[1738074359123,1.43046757,672.61,670.83,0.29813812]
[1738074359322,1.43046757,672.6,670.83,0.29813812]
[1738074359526,1.43046757,672.59,670.83,0.29813812]
[1738074359724,1.43046757,672.58,670.83,0.29813812]
[1738074359929,1.43046757,672.57,670.83,0.29813812]
[1738074360129,1.43046757,672.56,670.83,0.29813812]
[1738074360328,1.15704245,672.55,670.83,0.29813812]
[1738074360533,1.43046757,672.54,670.83,0.29813812]
[1738074360732,0.27342512,672.53,670.83,0.29813812]
[1738074361029,1.15704245,672.52,670.83,0.29813812]
[1738074361229,1.43046757,672.51,670.83,0.29813812]
[1738074361429,1.43046757,672.5,670.83,0.29813812]
[1738074361627,1.43046757,672.49,670.83,0.29813812]
[1738074361834,1.43046757,672.48,670.83,0.29813812]
[1738074362034,1.43046757,672.47,670.83,0.29813812]
[1738074362334,1.15704245,672.46,670.83,0.29813812]
[1738074362634,1.15704245,672.45,670.83,0.29813812]
[1738074362836,1.15704245,672.44,670.83,0.29813812]
[1738074363128,1.15704245,672.43,670.83,0.29813812]
[1738074363333,1.15704245,672.42,670.83,0.29813812]
[1738074363533,1.55362923,672.78,670.83,0.29813812]
[1738074363534,1.15704245,672.41,670.83,0.29813812]
[1738074363834,1.15704245,672.4,670.83,0.29813812]
[1738074364133,1.15704245,672.39,670.83,0.29813812]
[1738074364330,1.15704245,672.38,670.83,0.29813812]
[1738074364531,1.15704245,672.37,670.83,0.29813812]
[1738074364831,1.15704245,672.36,670.83,0.29813812]
[1738074365033,1.15704245,672.35,670.83,0.29813812]
[1738074365333,1.4305213,672.34,670.83,0.29813812]
[1738074365528,1.15704245,672.33,670.83,0.29813812]
[1738074365736,1.43052655,672.32,670.83,0.29813812]
[1738074365936,0.71795734,672.77,670.83,0.29813812]
[1738074365937,1.43052655,672.31,670.83,0.29813812]
[1738074366229,1.43052655,672.3,670.83,0.29813812]
[1738074366434,1.43052655,672.29,670.83,0.29813812]
[1738074366634,1.43052655,672.28,670.83,0.29813812]
[1738074366836,1.15704245,672.27,670.83,0.29813812]
[1738074367135,1.15704245,672.26,670.83,0.29813812]
[1738074367436,1.15704245,672.25,670.83,0.29813812]
[1738074367637,1.15704245,672.24,670.83,0.29813812]
[1738074367935,0.71795734,672.77,670.83,0.29813812]
[1738074368132,1.55408599,672.65,670.83,0.29813812]
[1738074368333,1.72666924,672.64,670.83,0.29813812]
[1738074368530,1.72667366,672.63,670.83,0.29813812]
[1738074368833,1.72667808,672.62,670.83,0.29813812]
[1738074369033,1.42933337,672.61,670.83,0.29813812]
[1738074369340,1.42933337,672.6,670.83,0.29813812]
[1738074369533,1.42933337,672.59,670.83,0.29813812]
[1738074369730,1.42933337,672.58,670.83,0.29813812]
[1738074369931,1.42933337,672.57,670.83,0.29813812]
[1738074370134,1.42933337,672.56,670.83,0.29813812]
[1738074370333,1.42933337,672.55,670.83,0.29813812]
[1738074370536,1.42933337,672.54,670.83,0.29813812]
[1738074370736,1.42933337,672.53,670.83,0.29813812]
[1738074370937,1.42933337,672.52,670.83,0.29813812]
[1738074371240,1.42933337,672.51,670.83,0.29813812]
[1738074371438,1.42933337,672.5,670.83,0.29813812]
[1738074371738,1.42933337,672.49,670.83,0.29813812]
[1738074371938,0.29734471,672.62,670.83,0.29813812]
[1738074371939,1.42933337,672.48,670.83,0.29813812]
[1738074372138,1.42933337,672.47,670.83,0.29813812]
[1738074372339,1.42933337,672.46,670.83,0.29813812]
[1738074372541,1.42933337,672.45,670.83,0.29813812]
[1738074372741,1.42933337,672.44,670.83,0.29813812]
[1738074372940,1.42933337,672.43,670.83,0.29813812]
[1738074373140,1.42933337,672.42,670.83,0.29813812]
[1738074373335,1.42933337,672.41,670.83,0.29813812]
[1738074373538,1.15586313,672.4,670.83,0.29813812]
[1738074373840,1.15586313,672.39,670.83,0.29813812]
[1738074374143,1.15586313,672.38,670.83,0.29813812]
[1738074374441,1.15586313,672.37,670.83,0.29813812]
[1738074374638,1.15586313,672.36,670.83,0.29813812]
[1738074374838,1.15586313,672.35,670.83,0.29813812]
[1738074375040,1.15586313,672.34,670.83,0.29813812]
[1738074375240,0.29734471,672.62,670.83,0.29813812]
[1738074375241,1.15586313,672.33,670.83,0.29813812]
[1738074375441,0.29734471,672.62,670.83,0.29813812]
[1738074375442,1.15586313,672.32,670.83,0.29813812]
[1738074375641,1.15586313,672.31,670.83,0.29813812]
[1738074375841,1.15586313,672.3,670.83,0.29813812]
[1738074376043,1.15586313,672.29,670.83,0.29813812]
[1738074376241,1.15586313,672.28,670.83,0.29813812]
[1738074376442,0.29734471,672.62,670.83,0.29813812]
[1738074376646,1.1561746,672.61,670.83,0.29813812]
[1738074376944,1.72703777,672.6,670.83,0.29813812]
[1738074377144,1.72704219,672.59,670.83,0.29813812]
[1738074377345,1.72704661,672.58,670.83,0.29813812]
[1738074377546,1.72705103,672.57,670.83,0.29813812]
[1738074377744,1.72705545,672.56,670.83,0.29813812]
[1738074377947,1.72705987,672.55,670.83,0.29813812]
[1738074378146,1.42968422,672.54,670.83,0.29813812]
[1738074378443,1.42968804,672.53,670.83,0.29813812]
[1738074378646,1.42968804,672.52,670.83,0.29813812]
[1738074378845,1.42968804,672.51,670.83,0.29813812]
[1738074379047,1.42968804,672.5,670.83,0.29813812]
[1738074379247,1.42968804,672.49,670.83,0.29813812]
[1738074379447,1.42968804,672.48,670.83,0.29813812]
[1738074379646,1.42968804,672.47,670.83,0.29813812]
[1738074379844,1.42968804,672.46,670.83,0.29813812]
[1738074380047,1.42973233,672.45,670.83,0.29813812]
[1738074380346,1.42973233,672.44,670.83,0.29813812]
[1738074380546,1.42973233,672.43,670.83,0.29813812]
[1738074380848,1.72716548,672.42,670.83,0.29813812]
[1738074381149,1.42973233,672.41,670.93,1.10766605]
[1738074381346,1.42973233,672.4,670.93,1.10766605]
[1738074381548,1.42973233,672.39,670.93,1.10766605]
[1738074381748,1.72718317,672.38,670.93,1.10766605]
[1738074382046,1.7271876,672.37,670.93,1.10766605]
[1738074382249,1.72719202,672.36,670.93,1.10766605]
[1738074382452,1.72719644,672.35,670.93,1.10766605]
[1738074382749,1.42973233,672.34,670.93,1.10766605]
[1738074382948,1.42973233,672.33,670.93,1.10766605]
[1738074383143,1.42973233,672.32,670.93,1.10766605]
[1738074383344,1.72721414,672.31,670.93,1.10766605]
[1738074383541,1.42979669,672.3,670.93,1.10766605]
[1738074383746,1.72728735,672.29,670.93,1.10766605]
[1738074383942,1.42979669,672.28,670.93,1.10766605]
[1738074384147,1.42979669,672.27,670.83,0.29813812]
[1738074384349,1.42979669,672.26,670.83,0.29813812]
[1738074384646,1.42979669,672.25,670.83,0.29813812]
[1738074384848,1.42979669,672.24,670.83,0.29813812]
[1738074385047,1.42979669,672.23,670.83,0.29813812]
[1738074385247,1.43322012,672.22,670.83,0.29813812]
[1738074385447,1.43322012,672.21,670.83,0.29813812]
[1738074385644,1.43322012,672.2,670.83,0.29813812]
[1738074385846,1.43337053,672.19,670.83,0.29813812]
[1738074386148,1.43337053,672.18,670.83,0.29813812]
[1738074386349,1.43337053,672.17,670.83,0.29813812]
[1738074386546,1.43337053,672.16,670.83,0.29813812]
[1738074386743,1.43368865,672.15,670.83,0.29813812]
[1738074386945,1.43368865,672.14,670.83,0.29813812]
[1738074387246,1.16006656,672.13,670.83,0.29813812]
[1738074387548,1.16006656,672.12,670.83,0.29813812]
[1738074387750,1.16006656,672.11,670.83,0.29813812]
[1738074387951,1.16006656,672.1,670.83,0.29813812]
[1738074388143,1.16006656,672.09,670.83,0.29813812]
[1738074388350,0.29749066,672.29,670.83,0.29813812]
[1738074388351,1.16006656,672.08,670.83,0.29813812]
[1738074388550,1.16006656,672.07,670.83,0.29813812]
[1738074388745,1.16006656,672.06,670.83,0.29813812]
[1738074388949,1.16006656,672.05,670.83,0.29813812]
[1738074389148,1.16006656,672.04,670.83,0.29813812]
[1738074389349,1.16006656,672.03,670.83,0.29813812]
[1738074389548,1.16006656,672.02,670.83,0.29813812]
[1738074389746,1.16006656,672.01,670.83,0.29813812]
[1738074389950,1.16006656,672.0,670.83,0.29813812]
[1738074390148,1.16006656,671.99,670.83,0.29813812]
[1738074390349,1.16006656,671.98,670.83,0.29813812]
[1738074390544,1.16006656,671.97,670.83,0.29813812]
[1738074390748,1.16006656,671.96,670.83,0.29813812]
[1738074390953,1.16006656,671.95,670.83,0.29813812]
[1738074391153,1.16006656,671.94,670.83,0.29813812]
[1738074391354,1.16006656,671.93,670.83,0.29813812]
[1738074391555,1.4337117,671.92,670.83,0.29813812]
[1738074391752,1.4337117,671.91,670.83,0.29813812]
[1738074391957,1.4337117,671.9,670.83,0.29813812]
[1738074392251,1.4337117,671.89,670.83,0.29813812]
[1738074392455,1.16006656,671.88,670.83,0.29813812]
[1738074392656,1.16006656,671.87,670.83,0.29813812]
[1738074392956,1.16006656,671.86,670.83,0.29813812]
[1738074393257,1.16006656,671.85,670.83,0.29813812]
[1738074393555,1.16006656,671.84,670.83,0.29813812]
[1738074393757,1.16006656,671.83,670.83,0.29813812]
[1738074393951,1.16006656,671.82,670.83,0.29813812]
[1738074394157,1.16006656,671.81,670.83,0.29813812]
[1738074394352,1.16006656,671.8,670.83,0.29813812]
[1738074394560,1.16006656,671.79,670.83,0.29813812]
[1738074394755,1.16006656,671.78,670.83,0.29813812]
[1738074394966,1.55450251,672.28,670.83,0.29813812]
[1738074394967,1.16006656,671.77,670.83,0.29813812]
[1738074395160,1.16006656,671.76,670.83,0.29813812]
[1738074395460,1.16006656,671.75,670.83,0.29813812]
[1738074395662,1.16006656,671.74,670.83,0.29813812]
[1738074395854,1.16006656,671.73,670.83,0.29813812]
[1738074396057,1.16006656,671.72,670.83,0.29813812]
[1738074396253,1.16006656,671.71,670.83,0.29813812]
[1738074396560,1.16006656,671.7,670.83,0.29813812]
[1738074396759,1.16006656,671.69,670.83,0.29813812]
[1738074396959,1.16006656,671.68,670.83,0.29813812]
[1738074397164,1.55450251,672.28,670.83,0.29813812]
[1738074397461,1.73553056,672.27,670.83,0.29813812]
[1738074397663,1.73553499,672.26,670.83,0.29813812]
[1738074397862,1.73553941,672.25,670.83,0.29813812]
[1738074398160,1.73554384,672.24,670.83,0.29813812]
[1738074398355,1.73554826,672.23,670.83,0.29813812]
[1738074398560,1.73555269,672.22,670.83,0.29813812]
[1738074398762,1.73555712,672.21,670.83,0.29813812]
[1738074398962,1.73556154,672.2,670.83,0.29813812]
[1738074399157,1.09293429,672.41,670.83,0.29813812]
[1738074399158,1.73556597,672.19,670.83,0.29813812]
[1738074399365,1.73557039,672.18,670.83,0.29813812]
[1738074399560,1.73557482,672.17,670.83,0.29813812]
[1738074399863,1.73557925,672.16,670.83,0.29813812]
[1738074400063,1.73558367,672.15,670.83,0.29813812]
[1738074400259,1.7355881,672.14,670.83,0.29813812]
[1738074400463,1.73559253,672.13,670.83,0.29813812]
[1738074400659,1.46190964,672.12,670.83,0.29813812]
[1738074400965,1.73655609,672.11,670.83,0.29813812]
[1738074401166,1.43898576,672.1,670.83,0.29813812]
[1738074401460,1.43898576,672.09,670.83,0.29813812]
[1738074401666,1.43898576,672.08,670.83,0.29813812]
[1738074401867,1.7365738,672.07,670.83,0.29813812]
[1738074402167,1.43898576,672.06,670.83,0.29813812]
[1738074402364,1.43898576,672.05,670.83,0.29813812]
[1738074402563,1.43898576,672.04,670.83,0.29813812]
[1738074402764,1.43898576,672.03,670.83,0.29813812]
[1738074403064,1.43898576,672.02,670.83,0.29813812]
[1738074403265,1.43898576,672.01,670.83,0.29813812]
[1738074403469,1.43898576,672.0,670.83,0.29813812]
[1738074403766,1.43898576,671.99,670.83,0.29813812]
[1738074404065,1.43898576,671.98,670.83,0.29813812]
[1738074404264,1.16529844,671.97,670.83,0.29813812]
[1738074404464,1.43898576,671.96,670.83,0.29813812]
[1738074404764,1.43898576,671.95,670.83,0.29813812]
[1738074404967,1.44019229,671.94,670.83,0.29813812]
[1738074405162,1.44019229,671.93,670.83,0.29813812]
[1738074405365,1.44019229,671.92,670.83,0.29813812]
[1738074405566,1.44019229,671.91,670.83,0.29813812]
[1738074405766,1.44019229,671.9,670.83,0.29813812]
[1738074406066,1.44019229,671.89,670.83,0.29813812]
[1738074406269,1.44019229,671.88,670.83,0.29813812]
[1738074406567,1.44019229,671.87,670.83,0.29813812]
[1738074406869,1.44019229,671.86,670.83,0.29813812]
[1738074407068,1.16650497,671.85,670.83,0.29813812]
[1738074407366,1.16650497,671.84,670.83,0.29813812]
[1738074407562,1.16650497,671.83,670.83,0.29813812]
[1738074407867,1.16650497,671.82,670.83,0.29813812]
[1738074408067,1.16650497,671.81,670.83,0.29813812]
[1738074408366,1.16650497,671.8,670.83,0.29813812]
[1738074408565,1.16650497,671.79,670.83,0.29813812]
[1738074408767,1.16650497,671.78,670.83,0.29813812]
[1738074408962,0.29758804,672.07,670.83,0.29813812]
[1738074408963,1.16650497,671.77,670.83,0.29813812]
[1738074409166,1.16650497,671.76,670.83,0.29813812]
[1738074409366,1.16650497,671.75,670.83,0.29813812]
[1738074409568,1.16650497,671.74,670.83,0.29813812]
[1738074409868,1.16650497,671.73,670.83,0.29813812]
[1738074410067,1.16650497,671.72,670.83,0.29813812]
[1738074410362,1.16650497,671.71,670.83,0.29813812]
[1738074410568,1.16650497,671.7,670.83,0.29813812]
[1738074410870,1.16650497,671.69,670.83,0.29813812]
[1738074411168,1.16650497,671.68,670.83,0.29813812]
[1738074411366,1.16650497,671.67,670.83,0.29813812]
[1738074411566,0.29758804,672.07,670.83,0.29813812]
[1738074411765,1.43895344,672.06,670.83,0.29813812]
[1738074411966,0.29758804,672.07,670.83,0.29813812]
[1738074411967,1.43895344,672.05,670.83,0.29813812]
[1738074412168,1.43895344,672.04,670.83,0.29813812]
[1738074412364,1.43895344,672.03,670.83,0.29813812]
[1738074412668,1.43895344,672.02,670.83,0.29813812]
[1738074412869,1.43895344,672.01,670.83,0.29813812]
[1738074413070,1.43882587,672.0,670.83,0.29813812]
[1738074413372,1.43882587,671.99,670.83,0.29813812]
[1738074413568,1.43882587,671.98,670.83,0.29813812]
[1738074413873,1.16513915,671.97,670.83,0.29813812]
[1738074414067,1.16513915,671.96,670.83,0.29813812]
[1738074414268,1.16513915,671.95,670.83,0.29813812]
[1738074414571,1.16513915,671.94,670.83,0.29813812]
[1738074414871,1.16513915,671.93,670.83,0.29813812]
[1738074415063,1.16513915,671.92,670.83,0.29813812]
[1738074415263,1.16513915,671.91,670.83,0.29813812]
[1738074415464,1.16513915,671.9,670.83,0.29813812]
[1738074415663,1.16513915,671.89,670.83,0.29813812]
[1738074415867,1.16513915,671.88,670.83,0.29813812]
[1738074416168,1.16513915,671.87,670.83,0.29813812]
[1738074416369,0.29758804,672.07,670.83,0.29813812]
[1738074416565,1.16528829,672.06,670.83,0.29813812]
[1738074416768,1.16528829,672.05,670.83,0.29813812]
[1738074416965,1.16528829,672.04,670.83,0.29813812]
[1738074417168,0.29758804,672.07,670.83,0.29813812]
[1738074417169,1.16528829,672.03,670.83,0.29813812]
[1738074417370,1.16528829,672.02,670.83,0.29813812]
[1738074417567,1.16528829,672.06,670.83,0.29813812]
[1738074417765,1.16528829,672.01,670.83,0.29813812]
[1738074418072,1.16528829,672.05,670.83,0.29813812]
[1738074418570,1.16528829,672.06,670.83,0.29813812]
[1738074419073,0.29758804,672.07,670.83,0.29813812]
[1738074419367,1.16614123,672.06,670.83,0.29813812]
[1738074419569,0.29758804,672.07,670.83,0.29813812]
[1738074420373,1.43976588,672.06,670.83,0.29813812]
[1738074420575,0.27361267,672.05,670.83,0.29813812]
[1738074420770,1.16615321,672.04,670.83,0.29813812]
[1738074420975,1.43976588,672.03,670.83,0.29813812]
[1738074421273,1.43976588,672.02,670.83,0.29813812]
[1738074421476,0.27361267,672.01,670.83,0.29813812]
[1738074421674,0.27361267,672.06,670.83,0.29813812]
[1738074421869,0.29758804,672.07,670.83,0.29813812]
[1738074422068,0.27362364,672.06,670.83,0.29813812]
[1738074422878,0.27362364,672.06,670.91,1.10766605]
[1738074424176,0.29758804,672.07,670.91,1.10766605]
[1738074424370,0.27362281,672.06,670.91,1.10766605]
[1738074424574,0.29758804,672.07,670.91,1.10766605]
[1738074424774,0.2736116,672.06,670.91,1.10766605]
[1738074425279,0.29758804,672.07,670.9,1.10766605]
[1738074425477,0.27361718,672.06,670.9,1.10766605]
[1738074425677,0.29758804,672.07,670.9,1.10766605]
[1738074425878,0.27362206,672.06,670.9,1.10766605]
[1738074427276,0.29758804,672.07,670.91,0.29810257]
[1738074428080,0.29758804,672.07,670.95,1.10766605]
[1738074430484,0.29758804,672.07,670.96,0.29808036]
[1738074434979,1.55421324,672.36,670.96,0.29808036]
[1738074435183,0.27355531,672.35,670.96,0.29808036]
[1738074436187,1.55421324,672.36,670.96,0.29808036]
[1738074437286,0.27355632,672.34,670.96,0.29808036]
[1738074437788,0.27355632,672.35,670.96,0.29808036]
[1738074442794,1.09293429,672.33,670.96,1.40574641]
[1738074443089,0.27356822,672.32,670.96,1.40574641]
[1738074446089,0.27356822,672.32,671.03,1.10766605]
[1738074446390,0.27356822,672.31,671.03,1.10766605]
[1738074446590,0.27356822,672.3,671.03,1.10766605]
[1738074446790,0.27356822,672.29,671.03,1.10766605]
[1738074446990,0.27356822,672.35,671.03,1.10766605]
[1738074448094,0.27356822,672.35,671.04,0.29804482]
[1738074448392,0.27356822,672.35,671.07,1.10766605]
[1738074450995,1.36650251,672.35,671.15,1.10766605]
[1738074451195,0.27356822,672.34,671.15,1.10766605]
[1738074454595,0.27356822,672.34,671.13,1.10766605]
[1738074454793,0.27356822,672.33,671.13,1.10766605]
[1738074455096,0.27356822,672.32,671.13,1.10766605]
[1738074455293,0.27356822,672.37,671.13,1.10766605]
[1738074455497,0.27356822,672.36,671.13,1.10766605]
[1738074455701,0.27356822,672.37,671.13,1.10766605]
[1738074455898,0.27356822,672.36,671.13,1.10766605]
[1738074456094,0.27356822,672.37,671.13,1.10766605]
[1738074456697,0.27352562,672.36,671.13,1.10766605]
[1738074456901,0.27352562,672.35,671.13,1.10766605]
[1738074457103,0.27352562,672.35,671.04,0.29804482]
[1738074457104,0.27352562,672.34,671.21,1.10766605]
[1738074457401,0.27352562,672.33,671.21,1.10766605]
[1738074457600,0.27352562,672.38,671.21,1.10766605]
[1738074457795,0.27352562,672.37,671.21,1.10766605]
[1738074458001,0.27352562,672.38,671.21,1.10766605]
[1738074458199,0.27352562,672.37,671.21,1.10766605]
[1738074458399,0.27352562,672.38,671.21,1.10766605]